[Event "Titled Tuesday Blitz May 16 Late 2023"]
[White "Makridis, Dimitrios"]
[Black "Hakobyan, Aram"]
[WhiteFideId "25864475"]
[BlackFideId "13306677"]
[WhiteElo "2277"]
[BlackElo "2584"]
[Result "0-1"]
[Round "06"]
[TimeControl "180+2"]
[Date "2023.05.16"]
[WhiteClock "0:00:01"]
[BlackClock "0:00:45"]

1. e4 {[%clk 0:02:43]}  g6 {[%clk 0:03:00]} 2. d4 {[%clk 0:02:42]}  Bg7 {[%clk 0:03:00]} 3. c3 {[%clk 0:02:26]}  d6 {[%clk 0:02:58]} 4. Bd3 {[%clk 0:02:27]}  e5 {[%clk 0:02:56]} 5. dxe5 {[%clk 0:02:27]}  dxe5 {[%clk 0:02:56]} 6. Nf3 {[%clk 0:02:27]}  Nc6 {[%clk 0:02:56]} 7. O-O {[%clk 0:02:26]}  Nge7 {[%clk 0:02:55]} 8. Bg5 {[%clk 0:02:26]}  h6 {[%clk 0:02:55]} 9. Bh4 {[%clk 0:02:27]}  g5 {[%clk 0:02:45]} 10. Bg3 {[%clk 0:02:26]}  Ng6 {[%clk 0:02:46]} 11. Na3 {[%clk 0:02:26]}  h5 {[%clk 0:02:42]} 12. h3 {[%clk 0:01:44]}  g4 {[%clk 0:02:39]} 13. hxg4 {[%clk 0:01:35]}  h4 {[%clk 0:02:31]} 14. Bh2 {[%clk 0:01:35]}  h3 {[%clk 0:02:31]} 15. Bb5 {[%clk 0:01:34]}  Bxg4 {[%clk 0:02:26]} 16. Qxd8+ {[%clk 0:00:56]}  Rxd8 {[%clk 0:02:27]} 17. Be2 {[%clk 0:00:43]}  hxg2 {[%clk 0:02:22]} 18. Rfd1 {[%clk 0:00:40]}  a6 {[%clk 0:02:07]} 19. Nc4 {[%clk 0:00:28]}  Ke7 {[%clk 0:02:07]} 20. Ne3 {[%clk 0:00:25]}  Be6 {[%clk 0:02:04]} 21. Nd5+ {[%clk 0:00:15]}  Bxd5 {[%clk 0:02:00]} 22. exd5 {[%clk 0:00:16]}  Nb8 {[%clk 0:02:01]} 23. Kxg2 {[%clk 0:00:11]}  Nd7 {[%clk 0:01:59]} 24. Bg3 {[%clk 0:00:10]}  f5 {[%clk 0:01:54]} 25. Rh1 {[%clk 0:00:07]}  Bf6 {[%clk 0:01:43]} 26. c4 {[%clk 0:00:02]}  e4 {[%clk 0:01:41]} 27. Nd2 {[%clk 0:00:02]}  f4 {[%clk 0:01:41]} 28. Nxe4 {[%clk 0:00:02]}  fxg3 {[%clk 0:01:41]} 29. fxg3 {[%clk 0:00:02]}  Bxb2 {[%clk 0:01:39]} 30. Rae1 {[%clk 0:00:02]}  Rxh1 {[%clk 0:01:40]} 31. Rxh1 {[%clk 0:00:03]}  Nf6 {[%clk 0:01:18]} 32. Ng5 {[%clk 0:00:02]}  Be5 {[%clk 0:01:09]} 33. Bd3 {[%clk 0:00:02]}  Rg8 {[%clk 0:01:04]} 34. Kf3 {[%clk 0:00:03]}  Bd6 {[%clk 0:01:02]} 35. Ne6 {[%clk 0:00:03]}  Ne5+ {[%clk 0:01:02]} 36. Ke2 {[%clk 0:00:03]}  Nxd3 {[%clk 0:01:02]} 37. Kxd3 {[%clk 0:00:03]}  Rxg3+ {[%clk 0:01:02]} 38. Kd4 {[%clk 0:00:04]}  c5+ {[%clk 0:00:54]} 39. dxc6 {[%clk 0:00:02]}  Kxe6 {[%clk 0:00:54]} 40. Re1+ {[%clk 0:00:02]}  Kf7 {[%clk 0:00:53]} 41. cxb7 {[%clk 0:00:02]}  Rg4+ {[%clk 0:00:47]} 42. Kc3 {[%clk 0:00:03]}  Nd7 {[%clk 0:00:46]} 43. Rd1 {[%clk 0:00:02]}  Ke7 {[%clk 0:00:46]} 44. Re1+ {[%clk 0:00:02]}  Kd8 {[%clk 0:00:46]} 45. Rd1 {[%clk 0:00:01]}  Kc7 {[%clk 0:00:45]} 0-1


[Site "https://www.chess.com"]

[Event "Titled Tuesday Blitz May 16 Late 2023"]
[White "Ibarra Jerez, Jose Carlos"]
[Black "Fernandez Guillen, Ernesto J."]
[WhiteFideId "2226332"]
[BlackFideId "3512428"]
[WhiteElo "2638"]
[BlackElo "2429"]
[Result "1-0"]
[Round "06"]
[TimeControl "180+2"]
[Date "2023.05.16"]
[WhiteClock "0:00:02"]
[BlackClock "0:00:03"]

1. e4 {[%clk 0:03:00]}  e5 {[%clk 0:02:49]} 2. Nf3 {[%clk 0:03:01]}  Nc6 {[%clk 0:02:48]} 3. Nc3 {[%clk 0:03:01]}  g6 {[%clk 0:02:38]} 4. d4 {[%clk 0:03:00]}  exd4 {[%clk 0:02:39]} 5. Nd5 {[%clk 0:03:00]}  Bg7 {[%clk 0:02:39]} 6. Bg5 {[%clk 0:03:00]}  f6 {[%clk 0:02:39]} 7. Bh4 {[%clk 0:02:54]}  d6 {[%clk 0:02:31]} 8. Bc4 {[%clk 0:02:51]}  Ne5 {[%clk 0:02:26]} 9. Qxd4 {[%clk 0:02:37]}  c6 {[%clk 0:02:24]} 10. Ne3 {[%clk 0:02:30]}  Qb6 {[%clk 0:00:41]} 11. Qxd6 {[%clk 0:02:08]}  Qxb2 {[%clk 0:00:24]} 12. O-O {[%clk 0:01:53]}  Nxf3+ {[%clk 0:00:17]} 13. gxf3 {[%clk 0:01:54]}  Qe5 {[%clk 0:00:16]} 14. Rfd1 {[%clk 0:01:08]}  Qxd6 {[%clk 0:00:16]} 15. Rxd6 {[%clk 0:01:07]}  g5 {[%clk 0:00:16]} 16. Rad1 {[%clk 0:00:59]}  Bh3 {[%clk 0:00:15]} 17. Bg3 {[%clk 0:00:56]}  Ne7 {[%clk 0:00:15]} 18. Ng4 {[%clk 0:00:47]}  Rf8 {[%clk 0:00:14]} 19. Be6 {[%clk 0:00:43]}  h5 {[%clk 0:00:13]} 20. Nxf6+ {[%clk 0:00:36]}  Bxf6 {[%clk 0:00:14]} 21. Bxh3 {[%clk 0:00:27]}  h4 {[%clk 0:00:14]} 22. Bd7+ {[%clk 0:00:22]}  Kf7 {[%clk 0:00:14]} 23. Be6+ {[%clk 0:00:23]}  Kg6 {[%clk 0:00:08]} 24. e5 {[%clk 0:00:15]}  hxg3 {[%clk 0:00:09]} 25. exf6 {[%clk 0:00:15]}  gxh2+ {[%clk 0:00:10]} 26. Kxh2 {[%clk 0:00:14]}  Rxf6 {[%clk 0:00:10]} 27. Bg4 {[%clk 0:00:14]}  Nd5 {[%clk 0:00:09]} 28. Rd7 {[%clk 0:00:12]}  Rh8+ {[%clk 0:00:08]} 29. Kg1 {[%clk 0:00:12]}  Rf4 {[%clk 0:00:06]} 30. Rxb7 {[%clk 0:00:09]}  Rc4 {[%clk 0:00:06]} 31. Re1 {[%clk 0:00:08]}  Rf8 {[%clk 0:00:03]} 32. Rxa7 {[%clk 0:00:05]}  Rxc2 {[%clk 0:00:03]} 33. Rd7 {[%clk 0:00:05]}  Rf6 {[%clk 0:00:03]} 34. Re8 {[%clk 0:00:04]}  Rxa2 {[%clk 0:00:03]} 35. Rg8+ {[%clk 0:00:04]}  Kh6 {[%clk 0:00:04]} 36. Rh8+ {[%clk 0:00:04]}  Kg6 {[%clk 0:00:04]} 37. Rg8+ {[%clk 0:00:03]}  Kh6 {[%clk 0:00:04]} 38. Rdg7 {[%clk 0:00:03]}  Nf4 {[%clk 0:00:03]} 39. Rxg5 {[%clk 0:00:03]}  Ng6 {[%clk 0:00:03]} 40. Rh5# {[%clk 0:00:02]} 1-0


[Site "https://www.chess.com"]

[Event "Titled Tuesday Blitz May 16 Late 2023"]
[White "Schmakel, Sam"]
[Black "Zakhartsov, Vladimir"]
[WhiteFideId "2039311"]
[BlackFideId "4145097"]
[WhiteElo "2356"]
[BlackElo "2495"]
[Result "1-0"]
[Round "06"]
[TimeControl "180+2"]
[Date "2023.05.16"]
[WhiteClock "0:00:07"]
[BlackClock "0:00:05"]

1. d4 {[%clk 0:03:00]}  Nf6 {[%clk 0:02:59]} 2. c4 {[%clk 0:03:01]}  e6 {[%clk 0:02:59]} 3. Nf3 {[%clk 0:03:01]}  d5 {[%clk 0:02:58]} 4. Nc3 {[%clk 0:03:01]}  Bb4 {[%clk 0:02:57]} 5. cxd5 {[%clk 0:03:01]}  exd5 {[%clk 0:02:57]} 6. Bf4 {[%clk 0:03:01]}  O-O {[%clk 0:02:56]} 7. e3 {[%clk 0:03:00]}  Ne4 {[%clk 0:02:56]} 8. Rc1 {[%clk 0:02:43]}  Bf5 {[%clk 0:02:48]} 9. Be2 {[%clk 0:02:34]}  Nxc3 {[%clk 0:02:47]} 10. bxc3 {[%clk 0:02:34]}  Ba3 {[%clk 0:02:48]} 11. Rb1 {[%clk 0:02:32]}  Bxb1 {[%clk 0:02:44]} 12. Qxb1 {[%clk 0:02:33]}  b6 {[%clk 0:02:14]} 13. Ng5 {[%clk 0:02:30]}  g6 {[%clk 0:02:14]} 14. h4 {[%clk 0:02:29]}  Be7 {[%clk 0:02:05]} 15. Nf3 {[%clk 0:02:10]}  Nd7 {[%clk 0:02:01]} 16. h5 {[%clk 0:02:00]}  Nf6 {[%clk 0:01:55]} 17. hxg6 {[%clk 0:01:54]}  hxg6 {[%clk 0:01:53]} 18. Bd3 {[%clk 0:01:52]}  Ne4 {[%clk 0:01:50]} 19. Bxe4 {[%clk 0:01:50]}  dxe4 {[%clk 0:01:51]} 20. Qxe4 {[%clk 0:01:51]}  Bf6 {[%clk 0:01:49]} 21. Ne5 {[%clk 0:01:40]}  Re8 {[%clk 0:01:34]} 22. Qf3 {[%clk 0:01:31]}  Qc8 {[%clk 0:01:31]} 23. Ng4 {[%clk 0:01:27]}  Bg7 {[%clk 0:01:30]} 24. Be5 {[%clk 0:01:21]}  Qf5 {[%clk 0:01:06]} 25. Qxf5 {[%clk 0:00:47]}  gxf5 {[%clk 0:01:07]} 26. Nf6+ {[%clk 0:00:47]}  Kf8 {[%clk 0:01:06]} 27. Nxe8 {[%clk 0:00:46]}  Rxe8 {[%clk 0:01:07]} 28. Bxc7 {[%clk 0:00:45]}  Re6 {[%clk 0:00:55]} 29. Kd2 {[%clk 0:00:35]}  Ke7 {[%clk 0:00:52]} 30. Bb8 {[%clk 0:00:32]}  a6 {[%clk 0:00:52]} 31. a4 {[%clk 0:00:30]}  Rc6 {[%clk 0:00:51]} 32. Kd3 {[%clk 0:00:26]}  Bf6 {[%clk 0:00:32]} 33. c4 {[%clk 0:00:20]}  Rc8 {[%clk 0:00:32]} 34. Ba7 {[%clk 0:00:14]}  f4 {[%clk 0:00:21]} 35. Bxb6 {[%clk 0:00:07]}  fxe3 {[%clk 0:00:20]} 36. fxe3 {[%clk 0:00:08]}  Rg8 {[%clk 0:00:20]} 37. c5 {[%clk 0:00:07]}  Rxg2 {[%clk 0:00:19]} 38. d5 {[%clk 0:00:06]}  Rb2 {[%clk 0:00:17]} 39. Rf1 {[%clk 0:00:02]}  Be5 {[%clk 0:00:17]} 40. Rf3 {[%clk 0:00:02]}  f6 {[%clk 0:00:16]} 41. Ke4 {[%clk 0:00:02]}  Rb4+ {[%clk 0:00:14]} 42. Kf5 {[%clk 0:00:03]}  Rb3 {[%clk 0:00:11]} 43. Rh3 {[%clk 0:00:03]}  Kf7 {[%clk 0:00:08]} 44. Rh7+ {[%clk 0:00:03]}  Kg8 {[%clk 0:00:09]} 45. Ra7 {[%clk 0:00:03]}  Rxe3 {[%clk 0:00:06]} 46. c6 {[%clk 0:00:03]}  Rc3 {[%clk 0:00:05]} 47. c7 {[%clk 0:00:03]}  Bxc7 {[%clk 0:00:05]} 48. Rxc7 {[%clk 0:00:04]}  Rd3 {[%clk 0:00:05]} 49. Ke6 {[%clk 0:00:04]}  f5 {[%clk 0:00:05]} 50. d6 {[%clk 0:00:04]}  f4 {[%clk 0:00:05]} 51. d7 {[%clk 0:00:04]}  f3 {[%clk 0:00:05]} 52. Rc8+ {[%clk 0:00:05]}  Kg7 {[%clk 0:00:06]} 53. d8=Q {[%clk 0:00:06]}  Rxd8 {[%clk 0:00:06]} 54. Rxd8 {[%clk 0:00:07]}  f2 {[%clk 0:00:07]} 55. Bxf2 {[%clk 0:00:07]}  a5 {[%clk 0:00:05]} 56. Bd4+ {[%clk 0:00:07]} 1-0


[Site "https://www.chess.com"]

[Event "Titled Tuesday Blitz May 16 Late 2023"]
[White "Iturrizaga Bonelli, Eduardo"]
[Black "Sun, Rick"]
[WhiteFideId "3901211"]
[BlackFideId "30909481"]
[WhiteElo "2637"]
[BlackElo "2169"]
[Result "1-0"]
[Round "06"]
[TimeControl "180+2"]
[Date "2023.05.16"]
[WhiteClock "0:01:01"]
[BlackClock "0:00:16"]

1. c4 {[%clk 0:03:00]}  d6 {[%clk 0:03:00]} 2. g3 {[%clk 0:03:00]}  Nf6 {[%clk 0:03:01]} 3. Bg2 {[%clk 0:03:01]}  g6 {[%clk 0:03:02]} 4. d4 {[%clk 0:03:01]}  Bg7 {[%clk 0:03:02]} 5. Nc3 {[%clk 0:03:02]}  O-O {[%clk 0:03:02]} 6. e4 {[%clk 0:03:02]}  Nc6 {[%clk 0:03:00]} 7. Nge2 {[%clk 0:03:01]}  a6 {[%clk 0:02:57]} 8. O-O {[%clk 0:03:00]}  e5 {[%clk 0:02:55]} 9. d5 {[%clk 0:03:00]}  Na5 {[%clk 0:02:50]} 10. b3 {[%clk 0:02:56]}  b5 {[%clk 0:02:29]} 11. cxb5 {[%clk 0:02:54]}  axb5 {[%clk 0:02:30]} 12. Nxb5 {[%clk 0:02:47]}  Ba6 {[%clk 0:02:26]} 13. Nec3 {[%clk 0:02:46]}  Qd7 {[%clk 0:02:12]} 14. a4 {[%clk 0:02:46]}  Rfb8 {[%clk 0:02:11]} 15. Bd2 {[%clk 0:02:39]}  c5 {[%clk 0:01:38]} 16. dxc6 {[%clk 0:02:40]}  Nxc6 {[%clk 0:01:35]} 17. Bg5 {[%clk 0:02:35]}  Nd4 {[%clk 0:01:26]} 18. Re1 {[%clk 0:01:56]}  Nxb5 {[%clk 0:01:02]} 19. axb5 {[%clk 0:01:54]}  Bxb5 {[%clk 0:01:01]} 20. Rxa8 {[%clk 0:01:53]}  Rxa8 {[%clk 0:01:01]} 21. Nxb5 {[%clk 0:01:39]}  Qxb5 {[%clk 0:01:02]} 22. Qxd6 {[%clk 0:01:40]}  Qxb3 {[%clk 0:00:40]} 23. Bxf6 {[%clk 0:01:36]}  Bxf6 {[%clk 0:00:21]} 24. Qxf6 {[%clk 0:01:35]}  Qc3 {[%clk 0:00:21]} 25. Rd1 {[%clk 0:01:32]}  Re8 {[%clk 0:00:21]} 26. Bf1 {[%clk 0:01:27]}  Qc2 {[%clk 0:00:16]} 27. Rd7 {[%clk 0:01:27]}  Qa2 {[%clk 0:00:14]} 28. h4 {[%clk 0:01:25]}  h5 {[%clk 0:00:13]} 29. Rc7 {[%clk 0:01:24]}  Qe6 {[%clk 0:00:08]} 30. Qxe6 {[%clk 0:01:21]}  Rxe6 {[%clk 0:00:09]} 31. Bc4 {[%clk 0:01:21]}  Rf6 {[%clk 0:00:09]} 32. Kf1 {[%clk 0:01:18]}  Kg7 {[%clk 0:00:09]} 33. Ke2 {[%clk 0:01:18]}  Kg8 {[%clk 0:00:09]} 34. Bd5 {[%clk 0:01:16]}  Kg7 {[%clk 0:00:09]} 35. Ke3 {[%clk 0:01:14]}  Kg8 {[%clk 0:00:08]} 36. f4 {[%clk 0:01:13]}  exf4+ {[%clk 0:00:08]} 37. gxf4 {[%clk 0:01:14]}  Kg7 {[%clk 0:00:08]} 38. e5 {[%clk 0:01:14]}  Rf5 {[%clk 0:00:09]} 39. Be6 {[%clk 0:01:14]}  Kh6 {[%clk 0:00:05]} 40. Bxf5 {[%clk 0:01:14]}  g5 {[%clk 0:00:06]} 41. fxg5+ {[%clk 0:01:13]}  Kg7 {[%clk 0:00:06]} 42. e6 {[%clk 0:01:13]}  Kf8 {[%clk 0:00:05]} 43. Rxf7+ {[%clk 0:01:13]}  Kg8 {[%clk 0:00:06]} 44. Kf4 {[%clk 0:01:13]}  Kh8 {[%clk 0:00:07]} 45. Ke5 {[%clk 0:01:13]}  Kg8 {[%clk 0:00:07]} 46. Kf6 {[%clk 0:01:13]}  Kh8 {[%clk 0:00:08]} 47. Kg6 {[%clk 0:01:14]}  Kg8 {[%clk 0:00:09]} 48. Kxh5 {[%clk 0:01:14]}  Kh8 {[%clk 0:00:10]} 49. Kg6 {[%clk 0:01:13]}  Kg8 {[%clk 0:00:11]} 50. h5 {[%clk 0:01:14]}  Kh8 {[%clk 0:00:12]} 51. h6 {[%clk 0:01:14]}  Kg8 {[%clk 0:00:13]} 52. Kf6 {[%clk 0:01:15]}  Kh8 {[%clk 0:00:14]} 53. g6 {[%clk 0:01:15]}  Kg8 {[%clk 0:00:14]} 54. e7 {[%clk 0:01:13]}  Kh8 {[%clk 0:00:15]} 55. Be6 {[%clk 0:01:03]}  Kg8 {[%clk 0:00:16]} 56. Rh7# {[%clk 0:01:01]} 1-0


[Site "https://www.chess.com"]

[Event "Titled Tuesday Blitz May 16 Late 2023"]
[White "Alex_Sahakyan2006"]
[Black "Rodshtein, Maxim"]
[BlackFideId "2806851"]
[WhiteElo "2693"]
[BlackElo "2555"]
[Result "1-0"]
[Round "06"]
[TimeControl "180+2"]
[Date "2023.05.16"]
[WhiteClock "0:00:03"]
[BlackClock "0:00:00"]

1. d4 {[%clk 0:03:00]}  e6 {[%clk 0:02:59]} 2. e4 {[%clk 0:02:53]}  d5 {[%clk 0:02:58]} 3. Bd3 {[%clk 0:02:53]}  c5 {[%clk 0:02:56]} 4. exd5 {[%clk 0:02:49]}  exd5 {[%clk 0:02:55]} 5. Nf3 {[%clk 0:02:48]}  c4 {[%clk 0:02:53]} 6. Be2 {[%clk 0:02:46]}  Nc6 {[%clk 0:02:53]} 7. O-O {[%clk 0:02:44]}  Bd6 {[%clk 0:02:53]} 8. b3 {[%clk 0:02:44]}  cxb3 {[%clk 0:02:53]} 9. axb3 {[%clk 0:02:42]}  Nge7 {[%clk 0:02:53]} 10. Ba3 {[%clk 0:02:40]}  O-O {[%clk 0:02:49]} 11. c4 {[%clk 0:02:39]}  Bg4 {[%clk 0:02:46]} 12. Nbd2 {[%clk 0:02:18]}  Re8 {[%clk 0:02:40]} 13. c5 {[%clk 0:02:12]}  Bf4 {[%clk 0:02:30]} 14. b4 {[%clk 0:02:10]}  a6 {[%clk 0:02:26]} 15. h3 {[%clk 0:02:06]}  Bh5 {[%clk 0:02:18]} 16. Re1 {[%clk 0:01:47]}  Na7 {[%clk 0:01:40]} 17. Bb2 {[%clk 0:01:43]}  Nec6 {[%clk 0:01:38]} 18. g3 {[%clk 0:00:56]}  Bxd2 {[%clk 0:01:08]} 19. Qxd2 {[%clk 0:00:49]}  Qf6 {[%clk 0:01:08]} 20. Ne5 {[%clk 0:00:34]}  Bxe2 {[%clk 0:01:06]} 21. Rxe2 {[%clk 0:00:32]}  Qf5 {[%clk 0:01:03]} 22. Rae1 {[%clk 0:00:27]}  Nxe5 {[%clk 0:00:49]} 23. Rxe5 {[%clk 0:00:26]}  Rxe5 {[%clk 0:00:48]} 24. dxe5 {[%clk 0:00:20]}  Rd8 {[%clk 0:00:47]} 25. g4 {[%clk 0:00:16]}  Qf3 {[%clk 0:00:38]} 26. e6 {[%clk 0:00:16]}  h6 {[%clk 0:00:23]} 27. e7 {[%clk 0:00:11]}  Re8 {[%clk 0:00:21]} 28. Qd4 {[%clk 0:00:09]}  Qf6 {[%clk 0:00:06]} 29. Qxf6 {[%clk 0:00:09]}  gxf6 {[%clk 0:00:06]} 30. Bxf6 {[%clk 0:00:08]}  Nc6 {[%clk 0:00:07]} 31. h4 {[%clk 0:00:07]}  Nxb4 {[%clk 0:00:07]} 32. Rb1 {[%clk 0:00:03]}  Nd3 {[%clk 0:00:02]} 33. Rxb7 {[%clk 0:00:02]}  Nxc5 {[%clk 0:00:02]} 34. Rc7 {[%clk 0:00:03]}  Ne4 {[%clk 0:00:00]} 35. g5 {[%clk 0:00:03]} 1-0


[Site "https://www.chess.com"]

[Event "Titled Tuesday Blitz May 16 Late 2023"]
[White "Gritsenko, Nikolai"]
[Black "Krzyzanowski, Marcin"]
[WhiteFideId "14112493"]
[BlackFideId "1132199"]
[WhiteElo "2389"]
[BlackElo "2471"]
[Result "0-1"]
[Round "06"]
[TimeControl "180+2"]
[Date "2023.05.16"]
[WhiteClock "0:00:00"]
[BlackClock "0:00:12"]

1. d4 {[%clk 0:03:00]}  Nf6 {[%clk 0:02:59]} 2. Bg5 {[%clk 0:02:59]}  g6 {[%clk 0:02:56]} 3. Bxf6 {[%clk 0:02:59]}  exf6 {[%clk 0:02:57]} 4. c4 {[%clk 0:02:56]}  f5 {[%clk 0:02:55]} 5. Nc3 {[%clk 0:02:56]}  Bg7 {[%clk 0:02:55]} 6. e3 {[%clk 0:02:56]}  O-O {[%clk 0:02:55]} 7. g3 {[%clk 0:02:56]}  d6 {[%clk 0:02:52]} 8. Bg2 {[%clk 0:02:56]}  Nc6 {[%clk 0:02:53]} 9. Nge2 {[%clk 0:02:54]}  Re8 {[%clk 0:02:53]} 10. O-O {[%clk 0:02:54]}  a6 {[%clk 0:02:51]} 11. a3 {[%clk 0:02:52]}  h5 {[%clk 0:02:44]} 12. b4 {[%clk 0:02:47]}  h4 {[%clk 0:02:43]} 13. Rb1 {[%clk 0:02:44]}  Nb8 {[%clk 0:02:32]} 14. c5 {[%clk 0:02:32]}  c6 {[%clk 0:02:26]} 15. cxd6 {[%clk 0:02:30]}  Qxd6 {[%clk 0:02:27]} 16. d5 {[%clk 0:02:08]}  cxd5 {[%clk 0:02:06]} 17. Qxd5 {[%clk 0:01:54]}  Qe7 {[%clk 0:01:55]} 18. Nd4 {[%clk 0:01:32]}  hxg3 {[%clk 0:01:45]} 19. hxg3 {[%clk 0:01:31]}  Nd7 {[%clk 0:01:43]} 20. Rfe1 {[%clk 0:01:19]}  Nf6 {[%clk 0:01:39]} 21. Qc5 {[%clk 0:01:14]}  Rb8 {[%clk 0:01:21]} 22. Qxe7 {[%clk 0:01:13]}  Rxe7 {[%clk 0:01:22]} 23. a4 {[%clk 0:01:10]}  Bd7 {[%clk 0:01:17]} 24. b5 {[%clk 0:01:04]}  a5 {[%clk 0:01:17]} 25. Nd5 {[%clk 0:00:49]}  Nxd5 {[%clk 0:01:17]} 26. Bxd5 {[%clk 0:00:49]}  Be8 {[%clk 0:00:57]} 27. Red1 {[%clk 0:00:44]}  Rd8 {[%clk 0:00:54]} 28. Bf3 {[%clk 0:00:42]}  Red7 {[%clk 0:00:51]} 29. Rdc1 {[%clk 0:00:30]}  Bxd4 {[%clk 0:00:32]} 30. exd4 {[%clk 0:00:30]}  b6 {[%clk 0:00:28]} 31. d5 {[%clk 0:00:28]}  Rd6 {[%clk 0:00:25]} 32. Rc6 {[%clk 0:00:28]}  Kg7 {[%clk 0:00:23]} 33. Kf1 {[%clk 0:00:27]}  g5 {[%clk 0:00:23]} 34. Ke2 {[%clk 0:00:26]}  g4 {[%clk 0:00:22]} 35. Bg2 {[%clk 0:00:26]}  Kf6 {[%clk 0:00:21]} 36. Ke3 {[%clk 0:00:22]}  Ke5 {[%clk 0:00:20]} 37. Rbc1 {[%clk 0:00:21]}  Bd7 {[%clk 0:00:17]} 38. Rxd6 {[%clk 0:00:21]}  Kxd6 {[%clk 0:00:18]} 39. Kd4 {[%clk 0:00:21]}  Re8 {[%clk 0:00:18]} 40. Rc2 {[%clk 0:00:17]}  Re1 {[%clk 0:00:18]} 41. f3 {[%clk 0:00:17]}  Rd1+ {[%clk 0:00:17]} 42. Ke3 {[%clk 0:00:17]}  gxf3 {[%clk 0:00:17]} 43. Bxf3 {[%clk 0:00:17]}  Ra1 {[%clk 0:00:18]} 44. Kf4 {[%clk 0:00:13]}  Rxa4+ {[%clk 0:00:17]} 45. Kg5 {[%clk 0:00:13]}  Ra3 {[%clk 0:00:16]} 46. Rf2 {[%clk 0:00:13]}  Ke5 {[%clk 0:00:12]} 47. Re2+ {[%clk 0:00:13]}  Kd6 {[%clk 0:00:13]} 48. Rf2 {[%clk 0:00:13]}  Bxb5 {[%clk 0:00:13]} 49. Kf6 {[%clk 0:00:13]}  Bc4 {[%clk 0:00:13]} 50. Kxf5 {[%clk 0:00:08]}  a4 {[%clk 0:00:13]} 51. g4 {[%clk 0:00:08]}  b5 {[%clk 0:00:12]} 52. Kf6 {[%clk 0:00:07]}  b4 {[%clk 0:00:12]} 53. Kxf7 {[%clk 0:00:00]}  Rxf3+ {[%clk 0:00:12]} 0-1


[Site "https://www.chess.com"]

[Event "Titled Tuesday Blitz May 16 Late 2023"]
[White "Rustemov, Alexander"]
[Black "Papasimakopoulos, Alexandros"]
[WhiteFideId "4119002"]
[BlackFideId "4244125"]
[WhiteElo "2971"]
[BlackElo "2359"]
[Result "1-0"]
[Round "06"]
[TimeControl "180+2"]
[Date "2023.05.16"]
[WhiteClock "0:00:25"]
[BlackClock "0:00:11"]

1. d4 {[%clk 0:02:54]}  e6 {[%clk 0:02:55]} 2. Nf3 {[%clk 0:02:53]}  Nf6 {[%clk 0:02:54]} 3. c4 {[%clk 0:02:53]}  Bb4+ {[%clk 0:02:53]} 4. Bd2 {[%clk 0:02:53]}  Qe7 {[%clk 0:02:49]} 5. g3 {[%clk 0:02:53]}  Nc6 {[%clk 0:02:49]} 6. Nc3 {[%clk 0:02:53]}  b6 {[%clk 0:02:48]} 7. Bg2 {[%clk 0:02:51]}  Na5 {[%clk 0:02:45]} 8. b3 {[%clk 0:02:47]}  Bb7 {[%clk 0:02:45]} 9. O-O {[%clk 0:02:42]}  O-O {[%clk 0:02:40]} 10. Nb5 {[%clk 0:02:41]}  Bxd2 {[%clk 0:02:29]} 11. Qxd2 {[%clk 0:02:41]}  a6 {[%clk 0:02:23]} 12. Nc3 {[%clk 0:02:40]}  Ne4 {[%clk 0:02:22]} 13. Nxe4 {[%clk 0:02:38]}  Bxe4 {[%clk 0:02:23]} 14. Rfd1 {[%clk 0:02:35]}  d6 {[%clk 0:02:16]} 15. Rac1 {[%clk 0:02:34]}  Nc6 {[%clk 0:02:10]} 16. Ne1 {[%clk 0:02:31]}  Bxg2 {[%clk 0:02:10]} 17. Nxg2 {[%clk 0:02:31]}  a5 {[%clk 0:02:08]} 18. a3 {[%clk 0:02:29]}  h6 {[%clk 0:02:01]} 19. Nf4 {[%clk 0:02:29]}  Qf6 {[%clk 0:01:56]} 20. e3 {[%clk 0:02:26]}  g5 {[%clk 0:01:52]} 21. Nd3 {[%clk 0:02:24]}  Qf3 {[%clk 0:01:49]} 22. Ne1 {[%clk 0:02:21]}  Qf5 {[%clk 0:01:45]} 23. Qe2 {[%clk 0:02:21]}  e5 {[%clk 0:01:26]} 24. Qf3 {[%clk 0:02:11]}  Qxf3 {[%clk 0:01:25]} 25. Nxf3 {[%clk 0:02:12]}  exd4 {[%clk 0:01:19]} 26. Nxd4 {[%clk 0:02:08]}  Nxd4 {[%clk 0:01:19]} 27. Rxd4 {[%clk 0:02:08]}  f5 {[%clk 0:01:15]} 28. Kg2 {[%clk 0:02:05]}  Kg7 {[%clk 0:01:16]} 29. Kf3 {[%clk 0:02:03]}  Kf6 {[%clk 0:01:16]} 30. h4 {[%clk 0:01:57]}  Ke6 {[%clk 0:01:14]} 31. Rh1 {[%clk 0:01:57]}  Rh8 {[%clk 0:01:14]} 32. Ke2 {[%clk 0:01:51]}  Kf6 {[%clk 0:01:12]} 33. Rd5 {[%clk 0:01:49]}  Kg6 {[%clk 0:01:10]} 34. Kd3 {[%clk 0:01:44]}  Rae8 {[%clk 0:01:08]} 35. Rd4 {[%clk 0:01:28]}  Ra8 {[%clk 0:01:03]} 36. Kc3 {[%clk 0:01:28]}  Kf6 {[%clk 0:01:00]} 37. Rd5 {[%clk 0:01:23]}  Kg6 {[%clk 0:01:00]} 38. Rd2 {[%clk 0:01:19]}  Rae8 {[%clk 0:00:59]} 39. Kd4 {[%clk 0:01:18]}  Re5 {[%clk 0:00:57]} 40. hxg5 {[%clk 0:01:13]}  Re4+ {[%clk 0:00:55]} 41. Kd5 {[%clk 0:01:10]}  Kxg5 {[%clk 0:00:53]} 42. Kc6 {[%clk 0:01:07]}  Rh7 {[%clk 0:00:54]} 43. a4 {[%clk 0:01:00]}  Kg4 {[%clk 0:00:46]} 44. Rd5 {[%clk 0:00:58]}  Re5 {[%clk 0:00:43]} 45. Rd4+ {[%clk 0:00:57]}  Kf3 {[%clk 0:00:36]} 46. Rf4+ {[%clk 0:00:56]}  Ke2 {[%clk 0:00:36]} 47. Rh5 {[%clk 0:00:49]}  Rc5+ {[%clk 0:00:31]} 48. Kb7 {[%clk 0:00:49]}  d5 {[%clk 0:00:25]} 49. Rhxf5 {[%clk 0:00:44]}  h5 {[%clk 0:00:21]} 50. Rxd5 {[%clk 0:00:35]}  Rxd5 {[%clk 0:00:15]} 51. cxd5 {[%clk 0:00:35]}  Kd3 {[%clk 0:00:16]} 52. Kc6 {[%clk 0:00:32]}  Kc3 {[%clk 0:00:16]} 53. e4 {[%clk 0:00:29]}  Kxb3 {[%clk 0:00:16]} 54. e5 {[%clk 0:00:30]}  Re7 {[%clk 0:00:12]} 55. d6 {[%clk 0:00:26]}  cxd6 {[%clk 0:00:13]} 56. exd6 {[%clk 0:00:26]}  Re8 {[%clk 0:00:12]} 57. d7 {[%clk 0:00:26]}  Rg8 {[%clk 0:00:11]} 58. Re4 {[%clk 0:00:25]} 1-0


[Site "https://www.chess.com"]

[Event "Titled Tuesday Blitz May 16 Late 2023"]
[White "Nazari, Arad"]
[Black "Rasulov, Vugar"]
[WhiteFideId "12577324"]
[BlackFideId "13402390"]
[WhiteElo "2175"]
[BlackElo "2509"]
[Result "1-0"]
[Round "06"]
[TimeControl "180+2"]
[Date "2023.05.16"]
[WhiteClock "0:01:14"]
[BlackClock "0:00:00"]

1. e4 {[%clk 0:02:45]}  c5 {[%clk 0:02:59]} 2. Nf3 {[%clk 0:02:40]}  d6 {[%clk 0:03:00]} 3. Bb5+ {[%clk 0:02:40]}  Nd7 {[%clk 0:02:59]} 4. d4 {[%clk 0:02:40]}  cxd4 {[%clk 0:02:59]} 5. Qxd4 {[%clk 0:02:41]}  a6 {[%clk 0:02:59]} 6. Bxd7+ {[%clk 0:02:42]}  Bxd7 {[%clk 0:03:00]} 7. O-O {[%clk 0:02:42]}  Rc8 {[%clk 0:02:59]} 8. c4 {[%clk 0:02:42]}  e5 {[%clk 0:02:58]} 9. Qd3 {[%clk 0:02:43]}  h6 {[%clk 0:02:59]} 10. Nc3 {[%clk 0:02:42]}  Nf6 {[%clk 0:02:59]} 11. b3 {[%clk 0:02:42]}  Be7 {[%clk 0:02:59]} 12. a4 {[%clk 0:02:43]}  O-O {[%clk 0:02:59]} 13. Ba3 {[%clk 0:02:44]}  Bc6 {[%clk 0:02:54]} 14. Rfd1 {[%clk 0:02:42]}  Qb6 {[%clk 0:02:51]} 15. a5 {[%clk 0:02:41]}  Qa7 {[%clk 0:02:36]} 16. Nxe5 {[%clk 0:02:42]}  Rfd8 {[%clk 0:02:28]} 17. Nd5 {[%clk 0:02:34]}  Nxd5 {[%clk 0:02:18]} 18. exd5 {[%clk 0:02:31]}  Be8 {[%clk 0:02:18]} 19. Ng4 {[%clk 0:02:07]}  b5 {[%clk 0:02:14]} 20. axb6 {[%clk 0:02:00]}  Qxb6 {[%clk 0:02:14]} 21. Bb2 {[%clk 0:01:58]}  h5 {[%clk 0:01:38]} 22. Nh6+ {[%clk 0:01:26]}  gxh6 {[%clk 0:01:28]} 23. Qg3+ {[%clk 0:01:26]}  Bg5 {[%clk 0:01:28]} 24. h4 {[%clk 0:01:27]}  f5 {[%clk 0:00:00]} 25. Qc3 {[%clk 0:01:14]} 1-0


[Site "https://www.chess.com"]